fUSD/lending_fUSD_20260503
["ID","MTS","AMOUNT","RATE_DAILY","PERIOD"]
[421497485,1777753969000,-1554.74,0.00032602,2]
[421497486,1777753969000,-1554.74,0.00032657,2]
[421497492,1777753969000,-255.097131,0.00041096,120]
[421497479,1777753969000,-1554.74,0.00032328,2]
[421497488,1777753969000,-209.744,0.00032934,2]
[421497491,1777753969000,-306.27549249,0.00038207,2]
[421497476,1777753969000,-500.0,0.00032273,2]
[421497481,1777753969000,-1554.74,0.00032383,2]
[421497478,1777753969000,-500.0,0.00032328,2]
[421497477,1777753969000,-1554.74,0.00032273,2]
[421497480,1777753969000,-222.46738604,0.00032383,2]
[421497482,1777753969000,-1554.74,0.00032438,2]
[421497483,1777753969000,-1554.74,0.00032493,2]
[421497490,1777753969000,-309.0140843,0.00038207,2]
[421497484,1777753969000,-1554.74,0.00032547,2]
[421497494,1777753969000,-261.639759,0.00041096,120]
[421497489,1777753969000,-266.0,0.00037221,30]
[421497493,1777753969000,-236.998183,0.00041096,120]
[421497504,1777753970000,-236.998183,0.00041096,120]
[421497505,1777753970000,-261.63975691,0.00041096,120]
[421497511,1777753970000,-236.998183,0.00041096,120]
[421497517,1777753970000,-25749.74989178,0.00042441,120]
[421497509,1777753970000,-255.097131,0.00041096,120]
[421497506,1777753970000,-255.097131,0.00041096,120]
[421497515,1777753970000,-255.097131,0.00041096,120]
[421497514,1777753970000,-236.998183,0.00041096,120]
[421497513,1777753970000,-311.237253,0.00041096,120]
[421497507,1777753970000,-311.237253,0.00041096,120]
[421497516,1777753970000,-311.237253,0.00041096,120]
[421497510,1777753970000,-311.237253,0.00041096,120]
[421497503,1777753970000,-311.237253,0.00041096,120]
[421497518,1777753970000,-746.05307786,0.00032712,2]
[421497508,1777753970000,-236.998183,0.00041096,120]
[421497512,1777753970000,-255.097131,0.00041096,120]
[421497519,1777753994000,205.23409542,0.00030137,120]
[421497520,1777753995000,-300.0,0.00010699,2]
[421497521,1777753995000,-4532.66,0.000107,2]
[421497524,1777753996000,-4395.4017229,0.000107,2]
[421497523,1777753996000,-150.0,0.00010699,2]
[421497522,1777753996000,-454.6082771,0.0001069,2]
[421497528,1777754721000,-210.784469,0.0001,2]
[421497529,1777754721000,-577.63991073,0.0001,2]
[421497531,1777754721000,-250.0,0.00010175,2]
[421497530,1777754721000,-343.63082131,0.0001,2]
[421497532,1777754721000,-209.0,0.00010349,2]
[421497533,1777754721000,-1200.0,0.00010349,2]
[421497538,1777754721000,-151.0,0.0001035,2]
[421497535,1777754721000,-300.0,0.00010349,2]
[421497536,1777754721000,-151.0,0.0001035,2]
[421497537,1777754721000,-151.0,0.0001035,2]
[421497539,1777754721000,-151.0,0.0001035,2]
[421497534,1777754721000,-150.0,0.00010349,2]
[421497540,1777754721000,-151.0,0.0001035,2]
[421497541,1777754721000,-114.94479896,0.0001035,2]
[421497542,1777754803000,-36.05520104,0.0001035,2]
[421497544,1777754803000,-151.0,0.0001035,2]
[421497543,1777754803000,-151.0,0.0001035,2]
[421497546,1777754803000,-151.0,0.0001035,2]
[421497548,1777754803000,-151.0,0.0001035,2]
[421497547,1777754803000,-151.0,0.0001035,2]
[421497549,1777754803000,-79.60522689,0.0001035,2]
[421497545,1777754803000,-151.0,0.0001035,2]
[421497565,1777754953000,-183.3378733,0.00010699,2]
[421497561,1777754953000,-151.0,0.00010525,2]
[421497563,1777754953000,-150.0,0.00010698,2]
[421497564,1777754953000,-500.0,0.00010699,2]
[421497562,1777754953000,-192.34130079,0.00010525,2]
[421497557,1777754953000,-151.0,0.00010525,2]
[421497558,1777754953000,-151.0,0.00010525,2]
[421497556,1777754953000,-151.0,0.00010525,2]
[421497560,1777754953000,-151.0,0.00010525,2]
[421497555,1777754953000,-151.0,0.00010525,2]
[421497554,1777754953000,-151.0,0.00010525,2]
[421497553,1777754953000,-300.0,0.00010524,2]
[421497551,1777754953000,-176.44,0.00010486,2]
[421497566,1777754953000,-500.0,0.00010699,2]
[421497550,1777754953000,-2199.631,0.00010486,2]
[421497559,1777754953000,-151.0,0.00010525,2]
[421497552,1777754953000,-300.0,0.00010524,2]
[421497567,1777754953000,-500.0,0.00010699,2]
[421497569,1777754953000,-500.0,0.00010699,2]
[421497568,1777754953000,-500.0,0.00010699,2]
[421497585,1777754953000,-500.0,0.00010699,2]
[421497583,1777754953000,-500.0,0.00010699,2]
[421497584,1777754953000,-500.0,0.00010699,2]
[421497582,1777754953000,-500.0,0.00010699,2]
[421497579,1777754953000,-500.0,0.00010699,2]
[421497580,1777754953000,-500.0,0.00010699,2]
[421497578,1777754953000,-500.0,0.00010699,2]
[421497581,1777754953000,-500.0,0.00010699,2]
[421497575,1777754953000,-500.0,0.00010699,2]
[421497576,1777754953000,-500.0,0.00010699,2]
[421497574,1777754953000,-500.0,0.00010699,2]
[421497573,1777754953000,-500.0,0.00010699,2]
[421497571,1777754953000,-500.0,0.00010699,2]
[421497572,1777754953000,-500.0,0.00010699,2]
[421497570,1777754953000,-500.0,0.00010699,2]
[421497577,1777754953000,-500.0,0.00010699,2]
[421497596,1777754954000,-500.0,0.00010699,2]
[421497603,1777754954000,-500.0,0.00010699,2]
[421497602,1777754954000,-500.0,0.00010699,2]
[421497601,1777754954000,-500.0,0.00010699,2]
[421497600,1777754954000,-500.0,0.00010699,2]
[421497599,1777754954000,-500.0,0.00010699,2]
[421497598,1777754954000,-500.0,0.00010699,2]
[421497595,1777754954000,-500.0,0.00010699,2]
[421497586,1777754954000,-500.0,0.00010699,2]
[421497591,1777754954000,-500.0,0.00010699,2]
[421497593,1777754954000,-500.0,0.00010699,2]
[421497592,1777754954000,-500.0,0.00010699,2]
[421497590,1777754954000,-500.0,0.00010699,2]
[421497589,1777754954000,-500.0,0.00010699,2]
[421497587,1777754954000,-500.0,0.00010699,2]
[421497588,1777754954000,-500.0,0.00010699,2]
[421497605,1777754954000,-500.0,0.00010699,2]
[421497594,1777754954000,-500.0,0.00010699,2]
[421497604,1777754954000,-500.0,0.00010699,2]
[421497597,1777754954000,-500.0,0.00010699,2]
[421497607,1777754954000,-500.0,0.00010699,2]
[421497623,1777754954000,-465.72395313,0.00010699,2]
[421497624,1777754954000,-481.55991911,0.00010699,2]
[421497622,1777754954000,-399.32997073,0.00010699,2]
[421497621,1777754954000,-289.79103449,0.00010699,2]
[421497620,1777754954000,-574.98075643,0.00010699,2]
[421497619,1777754954000,-500.0,0.00010699,2]
[421497606,1777754954000,-500.0,0.00010699,2]
[421497617,1777754954000,-500.0,0.00010699,2]
[421497616,1777754954000,-500.0,0.00010699,2]
[421497618,1777754954000,-500.0,0.00010699,2]
[421497625,1777754954000,-5036.80791442,0.000107,2]
[421497615,1777754954000,-500.0,0.00010699,2]
[421497613,1777754954000,-500.0,0.00010699,2]
[421497614,1777754954000,-500.0,0.00010699,2]
[421497611,1777754954000,-500.0,0.00010699,2]
[421497609,1777754954000,-500.0,0.00010699,2]
[421497610,1777754954000,-500.0,0.00010699,2]
[421497608,1777754954000,-500.0,0.00010699,2]
[421497612,1777754954000,-500.0,0.00010699,2]
[421497626,1777754958000,-1824.61521681,0.000107,2]
[421497630,1777755032000,-1386.05206249,0.000107,2]
[421497629,1777755032000,-1200.0,0.00010699,2]
[421497631,1777755032000,-341.348914,0.000107,2]
[421497632,1777755032000,-512.90085166,0.000107,2]
[421497634,1777755032000,-3459.21954555,0.000107,2]
[421497633,1777755032000,-719.52552339,0.000107,2]
[421497636,1777755032000,-1159.94357071,0.000107,2]
[421497637,1777755032000,-985.20374786,0.000107,2]
[421497638,1777755032000,-1284.18884217,0.000107,2]
[421497639,1777755032000,-2434.79182097,0.000107,2]
[421497640,1777755032000,-2642.63241699,0.000107,2]
[421497635,1777755032000,-387294.1554578,0.000107,2]
[421497688,1777755038000,-1000.18778537,0.000107,2]
[421497689,1777755038000,-865.69,0.000107,2]
[421497701,1777755040000,-3876.72128997,0.00011099,2]
[421497703,1777755040000,-1150.32358744,0.000112,2]
[421497704,1777755040000,-1010.77484658,0.000112,2]
[421497708,1777755040000,-24309.66189287,0.00011989,2]
[421497706,1777755040000,-250.0,0.0001157,2]
[421497702,1777755040000,-481.12489441,0.000112,2]
[421497707,1777755040000,-1630.0,0.00011769,2]
[421497705,1777755040000,-553.71320465,0.00011535,2]
[421497699,1777755040000,-152.0,0.00010787,7]
[421497697,1777755040000,-242.27,0.000107,2]
[421497698,1777755040000,-524.31345647,0.000107,2]
[421497696,1777755040000,-313284.62924484,0.000107,2]
[421497695,1777755040000,-11991.61838017,0.000107,2]
[421497694,1777755040000,-469.10245822,0.000107,2]
[421497693,1777755040000,-253.67307293,0.000107,2]
[421497691,1777755040000,-1401.9124575,0.000107,2]
[421497690,1777755040000,-790.60565189,0.000107,2]
[421497692,1777755040000,-1057.47540344,0.000107,2]
[421497709,1777755040000,-184.67,0.00012266,2]
[421497700,1777755040000,-2562.70722274,0.000109,2]
[421497712,1777755040000,-250.0,0.00013,2]
[421497722,1777755040000,-4000.0,0.00013219,2]
[421497710,1777755040000,-4000.0,0.00012589,2]
[421497713,1777755040000,-150.0,0.00013118,2]
[421497734,1777755040000,-5000.0,0.000145,2]
[421497732,1777755040000,-49595.0685601,0.00014409,2]
[421497733,1777755040000,-5342.2257792,0.000145,2]
[421497731,1777755040000,-150.0,0.00014211,2]
[421497723,1777755040000,-150.0,0.00013482,2]
[421497729,1777755040000,-3876.72128989,0.00014113,2]
[421497727,1777755040000,-150.0,0.00013847,2]
[421497724,1777755040000,-4000.0,0.00013534,2]
[421497730,1777755040000,-250.0,0.00014137,2]
[421497726,1777755040000,-150.0,0.00013847,2]
[421497725,1777755040000,-769.41962343,0.00013688,21]
[421497719,1777755040000,-150.0,0.00013118,2]
[421497721,1777755040000,-150.0,0.00013118,2]
[421497718,1777755040000,-150.0,0.00013118,2]
[421497720,1777755040000,-150.0,0.00013118,2]
[421497717,1777755040000,-150.0,0.00013118,2]
[421497715,1777755040000,-150.0,0.00013118,2]
[421497728,1777755040000,-4000.0,0.00013848,2]
[421497711,1777755040000,-4000.0,0.00012904,2]
[421497768,1777755041000,-154.0,0.00022,2]
[421497773,1777755041000,-951.0,0.0002358,5]
[421497776,1777755041000,-623.0,0.00023978,2]
[421497774,1777755041000,-761.0,0.0002358,5]
[421497760,1777755041000,-2000.0,0.00019389,2]
[421497767,1777755041000,-2000.0,0.00021328,2]
[421497766,1777755041000,-3876.72128989,0.0002114,2]
[421497769,1777755041000,-159.0,0.00022,2]
[421497762,1777755041000,-154.0,0.0002,2]
[421497775,1777755041000,-160.0,0.00023637,2]
[421497771,1777755041000,-159.0,0.00023,2]
[421497783,1777755041000,-3876.72128989,0.00024653,2]
[421497770,1777755041000,-168.0,0.00023,2]
[421497778,1777755041000,-1267.0,0.00023978,2]
[421497779,1777755041000,-416.0,0.00023978,2]
[421497781,1777755041000,-159.0,0.00024,2]
[421497782,1777755041000,-2562.70722274,0.00024151,2]
[421497777,1777755041000,-1049.0,0.00023978,2]
[421497784,1777755041000,-1000.0,0.00024658,2]
[421497788,1777755041000,-162.66,0.00025342,7]
[421497763,1777755041000,-159.0,0.0002,2]
[421497780,1777755041000,-928.0,0.00023978,2]
[421497785,1777755041000,-162.66,0.00024658,2]
[421497787,1777755041000,-172.51702337,0.00025,2]
[421497772,1777755041000,-2000.0,0.00023267,2]
[421497759,1777755041000,-3876.72128989,0.00017627,2]
[421497752,1777755041000,-1000.0,0.00014799,2]
[421497757,1777755041000,-246.07,0.0001605,2]
[421497786,1777755041000,-162.97,0.00024658,2]
[421497735,1777755041000,-299.99,0.00014504,2]
[421497736,1777755041000,-500.0,0.00014573,2]
[421497740,1777755041000,-500.0,0.00014573,2]
[421497737,1777755041000,-500.38926088,0.00014573,2]
[421497741,1777755041000,-500.0,0.00014573,2]
[421497739,1777755041000,-500.0,0.00014573,2]
[421497738,1777755041000,-500.0,0.00014573,2]
[421497742,1777755041000,-500.0,0.00014573,2]
[421497743,1777755041000,-150.0,0.00014575,2]
[421497753,1777755041000,-539.11263333,0.00014799,2]
[421497761,1777755041000,-2562.70722274,0.00019634,2]
[421497750,1777755041000,-1000.0,0.00014799,2]
[421497746,1777755041000,-224.46986342,0.0001459,2]
[421497749,1777755041000,-166.14,0.000147,2]
[421497744,1777755041000,-150.0,0.00014575,2]
[421497748,1777755041000,-26762.8865,0.000147,2]
[421497751,1777755041000,-1000.0,0.00014799,2]
[421497747,1777755041000,-271.49761894,0.000146,2]
[421497765,1777755041000,-159.0,0.00021,2]
[421497754,1777755041000,-290.33637452,0.00014908,2]
[421497755,1777755041000,-2562.70722274,0.00015117,2]
[421497758,1777755041000,-2000.0,0.0001745,2]
[421497756,1777755041000,-2000.0,0.00015511,2]
[421497745,1777755041000,-240.973458,0.00014575,2]
[421497790,1777755041000,-769.41962344,0.00025603,21]
[421497764,1777755041000,-154.0,0.00021,2]
[421497795,1777755041000,-162.97,0.00026712,2]
[421497815,1777755041000,-162.66,0.00028991,2]
[421497817,1777755041000,-162.66,0.00029112,7]
[421497822,1777755041000,-1049.0,0.00029978,2]
[421497826,1777755041000,-239525.6198179,0.00030855,2]
[421497825,1777755041000,-504.0,0.00030158,5]
[421497827,1777755041000,-10695.2992361,0.00030855,2]
[421497824,1777755041000,-166.14,0.0003,7]
[421497823,1777755041000,-389.714,0.00029978,2]
[421497828,1777755041000,-150.0,0.00031011,2]
[421497829,1777755041000,-889.99,0.000311,14]
[421497831,1777755041000,-154.0,0.00031221,30]
[421497818,1777755041000,-162.97,0.00029112,7]
[421497832,1777755041000,-504.0,0.00031668,6]
[421497834,1777755041000,-500.0,0.0003178,2]
[421497838,1777755041000,-5643.94,0.0003178,2]
[421497840,1777755041000,-500.0,0.0003178,2]
[421497837,1777755041000,-500.0,0.0003178,2]
[421497836,1777755041000,-500.0,0.0003178,2]
[421497841,1777755041000,-500.0,0.0003178,2]
[421497835,1777755041000,-539.62,0.0003178,2]
[421497839,1777755041000,-500.0,0.0003178,2]
[421497843,1777755041000,-539.62,0.00031835,2]
[421497842,1777755041000,-500.0,0.00031835,2]
[421497789,1777755041000,-162.97,0.00025342,7]
[421497833,1777755041000,-3876.72128989,0.0003168,2]
[421497820,1777755041000,-163.02,0.00029232,30]
[421497830,1777755041000,-159.0,0.0003116,30]
[421497816,1777755041000,-162.97,0.00028991,2]
[421497844,1777755041000,-500.0,0.00031835,2]
[421497792,1777755041000,-162.97,0.00026027,30]
[421497796,1777755041000,-1049.0,0.00026978,2]
[421497793,1777755041000,-314.0,0.000265,2]
[421497797,1777755041000,-416.0,0.00026978,2]
[421497798,1777755041000,-851.0,0.00026978,2]
[421497799,1777755041000,-504.0,0.00027137,2]
[421497794,1777755041000,-162.66,0.00026712,2]
[421497801,1777755041000,-2664.49,0.00027397,10]
[421497800,1777755041000,-3197.39,0.00027397,10]
[421497802,1777755041000,-2220.41,0.00027397,10]
[421497804,1777755041000,-905.0,0.0002767,10]
[421497803,1777755041000,-889.99,0.000274,14]
[421497791,1777755041000,-162.66,0.00026027,30]
[421497819,1777755041000,-162.69,0.00029232,30]
[421497807,1777755041000,-162.66,0.0002863,2]
[421497806,1777755041000,-1701.96250761,0.00028549,68]
[421497805,1777755041000,-3876.72128989,0.00028167,2]
[421497808,1777755041000,-162.97,0.0002863,2]
[421497811,1777755041000,-162.66,0.0002875,7]
[421497821,1777755041000,-150.0,0.00029534,2]
[421497812,1777755041000,-162.97,0.0002875,7]
[421497814,1777755041000,-162.97,0.00028871,30]
[421497810,1777755041000,-2562.70722274,0.00028669,2]
[421497813,1777755041000,-162.66,0.00028871,30]
[421497809,1777755041000,-504.0,0.00028647,3]
[421497881,1777755042000,-500.0,0.00032054,2]
[421497883,1777755042000,-500.0,0.00032109,2]
[421497882,1777755042000,-444.0,0.00032082,2]
[421497878,1777755042000,-5643.94,0.00032054,2]
[421497869,1777755042000,-500.0,0.00031999,2]
[421497876,1777755042000,-500.0,0.00032054,2]
[421497877,1777755042000,-500.0,0.00032054,2]
[421497873,1777755042000,-500.0,0.00031999,2]
[421497871,1777755042000,-500.0,0.00031999,2]
[421497880,1777755042000,-500.0,0.00032054,2]
[421497879,1777755042000,-500.0,0.00032054,2]
[421497885,1777755042000,-500.0,0.00032109,2]
[421497892,1777755042000,-500.0,0.00032164,2]
[421497886,1777755042000,-500.0,0.00032109,2]
[421497887,1777755042000,-5643.94,0.00032109,2]
[421497891,1777755042000,-159.0,0.0003216,30]
[421497894,1777755042000,-500.0,0.00032164,2]
[421497888,1777755042000,-500.0,0.00032109,2]
[421497889,1777755042000,-500.0,0.00032109,2]
[421497893,1777755042000,-539.62,0.00032164,2]
[421497895,1777755042000,-500.0,0.00032164,2]
[421497890,1777755042000,-500.0,0.00032109,2]
[421497897,1777755042000,-500.0,0.00032164,2]
[421497896,1777755042000,-5643.94,0.00032164,2]
[421497884,1777755042000,-539.62,0.00032109,2]
[421497872,1777755042000,-500.0,0.00031999,2]
[421497846,1777755042000,-5643.94,0.00031835,2]
[421497865,1777755042000,-500.0,0.00031945,2]
[421497909,1777755042000,-539.62,0.00032273,2]
[421497851,1777755042000,-539.62,0.0003189,2]
[421497848,1777755042000,-500.0,0.00031835,2]
[421497845,1777755042000,-500.0,0.00031835,2]
[421497847,1777755042000,-500.0,0.00031835,2]
[421497850,1777755042000,-500.0,0.0003189,2]
[421497849,1777755042000,-500.0,0.00031835,2]
[421497853,1777755042000,-500.0,0.0003189,2]
[421497852,1777755042000,-500.0,0.0003189,2]
[421497855,1777755042000,-500.0,0.0003189,2]
[421497856,1777755042000,-500.0,0.0003189,2]
[421497862,1777755042000,-5643.94,0.00031945,2]
[421497854,1777755042000,-5643.94,0.0003189,2]
[421497857,1777755042000,-500.0,0.0003189,2]
[421497859,1777755042000,-539.62,0.00031945,2]
[421497858,1777755042000,-500.0,0.00031945,2]
[421497861,1777755042000,-500.0,0.00031945,2]
[421497860,1777755042000,-500.0,0.00031945,2]
[421497863,1777755042000,-500.0,0.00031945,2]
[421497864,1777755042000,-500.0,0.00031945,2]
[421497874,1777755042000,-500.0,0.00032054,2]
[421497875,1777755042000,-539.62,0.00032054,2]
[421497867,1777755042000,-539.62,0.00031999,2]
[421497866,1777755042000,-500.0,0.00031999,2]
[421497868,1777755042000,-500.0,0.00031999,2]
[421497870,1777755042000,-5643.94,0.00031999,2]
[421497899,1777755042000,-224.94727912,0.00032164,2]
[421497898,1777755042000,-500.0,0.00032164,2]
[421497903,1777755042000,-500.0,0.00032219,2]
[421497932,1777755042000,-500.0,0.00032493,2]
[421497935,1777755042000,-539.62,0.00032547,2]
[421497941,1777755042000,-500.0,0.00032602,2]
[421497934,1777755042000,-500.0,0.00032547,2]
[421497936,1777755042000,-500.0,0.00032547,2]
[421497937,1777755042000,-5643.94,0.00032547,2]
[421497933,1777755042000,-5643.94,0.00032493,2]
[421497938,1777755042000,-150.0,0.00032562,2]
[421497939,1777755042000,-500.0,0.00032602,2]
[421497940,1777755042000,-539.62,0.00032602,2]
[421497942,1777755042000,-5643.94,0.00032602,2]
[421497957,1777755042000,-500.0,0.00032767,2]
[421497944,1777755042000,-539.62,0.00032657,2]
[421497946,1777755042000,-500.0,0.00032657,2]
[421497943,1777755042000,-500.0,0.00032657,2]
[421497960,1777755042000,-539.62,0.00032767,2]
[421497953,1777755042000,-500.0,0.00032712,2]
[421497962,1777755042000,-500.0,0.00032767,2]
[421497964,1777755042000,-5643.94,0.00032767,2]
[421497949,1777755042000,-500.0,0.00032712,2]
[421497948,1777755042000,-5643.94,0.00032657,2]
[421497951,1777755042000,-539.62,0.00032712,2]
[421497966,1777755042000,-889.99,0.000328,14]
[421497967,1777755042000,-500.0,0.00032821,2]
[421497901,1777755042000,-539.62,0.00032219,2]
[421497927,1777755042000,-635.55241775,0.00032438,2]
[421497930,1777755042000,-500.0,0.00032493,2]
[421497955,1777755042000,-5643.94,0.00032712,2]
[421497931,1777755042000,-539.62,0.00032493,2]
[421497900,1777755042000,-500.0,0.00032219,2]
[421497929,1777755042000,-5643.94,0.00032438,2]
[421497905,1777755042000,-500.0,0.00032219,2]
[421497904,1777755042000,-5643.94,0.00032219,2]
[421497902,1777755042000,-500.0,0.00032219,2]
[421497906,1777755042000,-500.0,0.00032219,2]
[421497907,1777755042000,-154.0,0.00032221,30]
[421497908,1777755042000,-500.0,0.00032273,2]
[421497910,1777755042000,-500.0,0.00032273,2]
[421497912,1777755042000,-5643.94,0.00032273,2]
[421497920,1777755042000,-500.0,0.00032383,2]
[421497917,1777755042000,-500.0,0.00032328,2]
[421497914,1777755042000,-563.60472362,0.00032273,2]
[421497911,1777755042000,-500.0,0.00032273,2]
[421497921,1777755042000,-539.62,0.00032383,2]
[421497928,1777755042000,-500.0,0.00032438,2]
[421497915,1777755042000,-500.0,0.00032328,2]
[421497924,1777755042000,-5643.94,0.00032383,2]
[421497925,1777755042000,-500.0,0.00032438,2]
[421497926,1777755042000,-539.62,0.00032438,2]
[421497923,1777755042000,-500.0,0.00032383,2]
[421497918,1777755042000,-500.0,0.00032328,2]
[421497916,1777755042000,-539.62,0.00032328,2]
[421497913,1777755042000,-205.22532306,0.00032273,2]
[421497919,1777755042000,-5643.94,0.00032328,2]
[421497922,1777755042000,-500.0,0.00032383,2]
[421498006,1777755043000,-504.0,0.00034689,10]
[421498012,1777755043000,-150.0,0.00035899,2]
[421498010,1777755043000,-154.0,0.00035221,30]
[421498007,1777755043000,-889.99,0.000347,14]
[421498005,1777755043000,-152.0,0.00034542,3]
[421497997,1777755043000,-500.0,0.00033479,2]
[421498004,1777755043000,-1819.52228046,0.00034499,90]
[421498002,1777755043000,-150.0,0.0003419,2]
[421498001,1777755043000,-159.0,0.0003416,30]
[421497996,1777755043000,-500.0,0.00033424,2]
[421498009,1777755043000,-3876.72128989,0.00035193,2]
[421498008,1777755043000,-159.0,0.0003516,30]
[421498011,1777755043000,-2199.631,0.00035365,41]
[421498023,1777755043000,-3103.1729,0.00038019,2]
[421498013,1777755043000,-1049.0,0.00035978,2]
[421498016,1777755043000,-154.0,0.00036221,30]
[421498017,1777755043000,-159.0,0.0003716,30]
[421498018,1777755043000,-154.0,0.00037221,30]
[421498015,1777755043000,-504.0,0.00036199,11]
[421498020,1777755043000,-150.0,0.00037694,2]
[421498019,1777755043000,-197.97303143,0.00037549,2]
[421498022,1777755043000,-504.0,0.0003771,13]
[421498024,1777755043000,-310.3016,0.00038019,2]
[421498021,1777755043000,-2562.70722274,0.00037703,2]
[421498025,1777755043000,-300.0,0.00038086,2]
[421498000,1777755043000,-506.23533404,0.00033643,2]
[421498014,1777755043000,-159.0,0.0003616,30]
[421497998,1777755043000,-500.0,0.00033534,2]
[421497968,1777755043000,-539.62,0.00032821,2]
[421498003,1777755043000,-154.0,0.00034221,30]
[421498027,1777755043000,-553.36874927,0.00038086,2]
[421497969,1777755043000,-637.24987077,0.00032821,2]
[421497971,1777755043000,-5643.94,0.00032821,2]
[421497972,1777755043000,-678.32125699,0.00032876,10]
[421497976,1777755043000,-500.0,0.00032931,2]
[421497979,1777755043000,-1049.0,0.00032978,2]
[421497973,1777755043000,-500.0,0.00032876,2]
[421497978,1777755043000,-5643.94,0.00032931,2]
[421497974,1777755043000,-539.62,0.00032876,2]
[421497977,1777755043000,-539.62,0.00032931,2]
[421497975,1777755043000,-5643.94,0.00032876,2]
[421497981,1777755043000,-539.62,0.00032986,2]
[421497989,1777755043000,-504.0,0.00033178,8]
[421497983,1777755043000,-500.0,0.00033041,2]
[421497984,1777755043000,-539.70143323,0.00033041,2]
[421497980,1777755043000,-500.0,0.00032986,2]
[421497982,1777755043000,-5643.94,0.00032986,2]
[421497985,1777755043000,-5643.96538623,0.00033041,2]
[421497987,1777755043000,-500.0,0.0003315,2]
[421497990,1777755043000,-2562.70722274,0.00033186,2]
[421497991,1777755043000,-500.0,0.00033205,2]
[421497986,1777755043000,-500.0,0.00033095,2]
[421497988,1777755043000,-159.0,0.0003316,30]
[421497995,1777755043000,-500.0,0.00033369,2]
[421497993,1777755043000,-500.0,0.0003326,2]
[421497994,1777755043000,-500.0,0.00033315,2]
[421497992,1777755043000,-154.0,0.00033221,30]
[421497999,1777755043000,-500.0,0.00033589,2]
[421498026,1777755043000,-1091.76439935,0.00038086,2]
[421498086,1777755043000,-166.14,0.000383,7]
[421498037,1777755043000,-724.11272171,0.00038086,2]
[421498071,1777755043000,-308.76531569,0.00038086,2]
[421498072,1777755043000,-862.10960503,0.00038086,2]
[421498073,1777755043000,-461.96060172,0.00038086,2]
[421498060,1777755043000,-526.33558584,0.00038086,2]
[421498063,1777755043000,-724.11272171,0.00038086,2]
[421498062,1777755043000,-308.82462178,0.00038086,2]
[421498068,1777755043000,-851.91860122,0.00038086,2]
[421498065,1777755043000,-300.0,0.00038086,2]
[421498067,1777755043000,-584.09518872,0.00038086,2]
[421498064,1777755043000,-300.99573307,0.00038086,2]
[421498066,1777755043000,-300.0,0.00038086,2]
[421498070,1777755043000,-1144.08909663,0.00038086,2]
[421498069,1777755043000,-343.06188374,0.00038086,2]
[421498074,1777755043000,-300.0,0.00038086,2]
[421498076,1777755043000,-482.79385417,0.00038086,2]
[421498078,1777755043000,-300.0,0.00038086,2]
[421498084,1777755043000,-3103.1729,0.00038155,2]
[421498081,1777755043000,-724.11272171,0.00038086,2]
[421498077,1777755043000,-602.8595758,0.00038086,2]
[421498079,1777755043000,-526.33558583,0.00038086,2]
[421498075,1777755043000,-300.0,0.00038086,2]